bitfinex/quotes_ETHUSD_20250112
["timestamp","ask_amount","ask_price","bid_price","bid_amount"]
[1736703715859,0.05079468,3293.3,3293.1,0.32086242]
[1736703716064,0.05079468,3293.3,3293.0,0.015]
[1736703719361,2.17632468,3293.3,3293.0,0.015]
[1736703719866,0.05079468,3293.3,3293.0,0.015]
[1736703721667,0.05079468,3293.3,3293.2,0.0075]
[1736703721979,0.05079468,3293.3,3293.2,3.54032]
[1736703722155,0.05079468,3293.3,3293.2,0.0075]
[1736703722328,0.05079468,3293.3,3293.0,0.0075]
[1736703723822,2.17632468,3293.3,3293.0,0.0075]
[1736703727128,2.17632468,3293.3,3293.2,0.0075]
[1736703727286,2.17632468,3293.3,3293.2,2.07667]
[1736703727483,2.17632468,3293.3,3293.2,2.84977]
[1736703728636,2.17632468,3293.3,3293.2,0.0075]
[1736703730035,0.05079468,3293.3,3293.2,5.015]
[1736703730330,0.05079468,3293.3,3293.2,9.37516]
[1736703730529,0.005,3293.4,3293.3,3.015]
[1736703730733,0.05515467,3293.4,3293.3,8.06036154]
[1736703731074,0.05515467,3293.4,3293.3,8.03]
[1736703731232,0.05515467,3293.4,3293.3,8.66447857]
[1736703732680,0.05515467,3293.4,3293.3,9.46567857]
[1736703733183,0.005,3293.4,3293.3,9.46567857]
[1736703734291,0.005,3293.4,3293.3,10.01567857]
[1736703738644,0.005,3293.4,3293.3,10.22667857]
[1736703738825,0.005,3293.4,3293.3,12.35219857]
[1736703743760,0.005,3293.4,3293.3,10.22667857]
[1736703744065,0.005,3293.4,3293.3,10.01567857]
[1736703744360,0.005,3293.4,3293.3,9.45817857]
[1736703746195,0.005,3293.4,3293.3,10.01567857]
[1736703748094,0.005,3293.4,3293.3,9.46567857]
[1736703748401,0.005,3293.4,3293.3,7.23916857]
[1736703749003,0.0561119,3293.4,3293.3,7.23916857]
[1736703749173,0.005,3293.4,3293.3,7.23916857]
[1736703749362,0.0561119,3293.4,3293.3,7.23916857]
[1736703749562,0.005,3293.4,3293.3,7.23916857]
[1736703749763,0.05604862,3293.4,3293.3,7.23916857]
[1736703749965,0.005,3293.4,3293.3,7.23916857]
[1736703750207,0.05604862,3293.4,3293.3,7.23916857]
[1736703750373,0.005,3293.4,3293.3,7.23916857]
[1736703750571,0.05597743,3293.4,3293.3,7.23916857]
[1736703755309,0.05597743,3293.4,3293.3,7.78916857]
[1736703755680,0.005,3293.4,3293.3,7.78916857]
[1736703756482,0.005,3293.4,3293.3,7.21666857]
[1736703756807,0.05511353,3293.4,3293.3,7.23916857]
[1736703756958,0.005,3293.4,3293.3,7.23916857]
[1736703757163,0.05511353,3293.4,3293.3,7.23916857]
[1736703757812,0.005,3293.4,3293.3,7.78916857]
[1736703759269,0.05511353,3293.4,3293.3,7.78916857]
[1736703759468,0.005,3293.4,3293.3,7.78916857]
[1736703763995,0.005,3293.4,3293.3,8.56276857]
[1736703773696,0.005,3293.4,3293.3,7.78916857]
[1736703773895,0.05529547,3293.4,3293.3,7.78916857]
[1736703774298,0.05529547,3293.4,3293.3,6.08731]
[1736703777703,0.05529547,3293.4,3293.3,6.64481]
[1736703781830,0.05529547,3293.4,3293.3,6.65981]
[1736703784277,0.05529547,3293.4,3293.3,9.55223]
[1736703784667,0.005,3293.4,3293.3,9.55223]
[1736703787072,0.005,3293.4,3293.3,7.42671]
[1736703788071,0.05521635,3293.4,3293.3,7.42671]
[1736703788259,0.005,3293.4,3293.3,7.42671]
[1736703788444,0.05521635,3293.4,3293.3,7.42671]
[1736703788647,0.005,3293.4,3293.3,6.65981]
[1736703788885,0.05521635,3293.4,3293.3,5.67112]
[1736703789046,0.005,3293.4,3293.3,0.5725]
[1736703789252,0.05535872,3293.4,3293.3,0.0075]
[1736703789448,0.005,3293.4,3293.3,0.0075]
[1736703789651,3.00201872,3293.4,3293.3,0.0075]
[1736703789853,2.95166,3293.4,3293.3,0.0075]
[1736703790143,3.43367743,3293.4,3292.8,0.015]
[1736703790338,3.3219404,3293.3,3292.6,0.5973353]
[1736703790542,2.94681,3293.2,3292.6,0.0225]
[1736703791072,0.05016099,3293.1,3292.6,0.0225]
[1736703791439,2.94681,3293.2,3292.6,0.0225]
[1736703791837,2.94681,3293.2,3292.7,0.0075]
[1736703792278,0.05016099,3293.1,3292.7,0.0075]
[1736703792576,2.94681,3293.2,3292.7,0.0075]
[1736703793488,2.12579,3292.9,3292.4,0.03036657]
[1736703793985,2.12579,3292.9,3292.2,3.7669]
[1736703793986,0.8289,3292.7,3292.5,0.0075]
[1736703794585,0.04930661,3292.6,3291.9,0.7798]
[1736703794796,0.8289,3292.7,3292.3,0.03]
[1736703795594,0.04930661,3292.6,3292.1,0.0225]
[1736703797393,0.04930661,3292.6,3291.7,0.7798]
[1736703797394,0.8289,3292.3,3291.7,0.7798]
[1736703797781,0.04907711,3292.2,3291.8,0.03]
[1736703797953,0.8289,3292.3,3291.8,0.03]
[1736703798153,0.8289,3292.3,3291.5,0.60380433]
[1736703798154,0.04907711,3292.1,3291.5,0.60380433]
[1736703798464,0.168764,3293.6,3291.5,0.0225]
[1736703798465,0.8289,3292.0,3291.5,0.0225]
[1736703798664,0.87797711,3292.0,3291.5,0.0075]
[1736703798999,3.00436711,3292.0,3291.1,0.03038053]
[1736703799167,3.00436711,3292.0,3291.2,0.0225]
[1736703800806,0.87797711,3292.0,3291.3,0.0075]
[1736703800957,0.87797711,3292.0,3291.5,0.58]
[1736703801152,0.87797711,3292.0,3291.5,0.61037733]
[1736703805495,0.04907711,3292.0,3291.7,0.58]
[1736703805671,0.04907711,3292.0,3291.9,0.565]
[1736703805871,2.95506,3292.4,3291.9,5.565]
[1736703806071,2.95506,3292.4,3291.9,0.015]
[1736703806425,0.04772366,3292.3,3291.9,0.0075]
[1736703808785,2.17392366,3292.3,3291.9,0.0075]
[1736703814496,2.47420603,3292.3,3291.9,0.0075]
[1736703814832,2.12626,3292.2,3291.9,0.0075]
[1736703815214,0.047787,3292.1,3291.9,0.0075]
[1736703818391,2.95502,3292.4,3291.9,0.0075]
[1736703818636,0.047787,3292.0,3291.9,0.0075]
[1736703818964,2.95502,3292.4,3292.1,0.0075]
[1736703820250,0.8289,3292.4,3292.1,0.0075]
[1736703821046,0.8289,3292.4,3291.9,0.0075]
[1736703829155,0.04640968,3292.3,3291.9,0.0075]
[1736703831151,0.04640968,3292.3,3292.0,0.0225]
[1736703831340,0.8033,3292.7,3292.0,0.5725]
[1736703831654,0.04640968,3292.2,3292.0,0.5725]
[1736703831822,0.8033,3292.7,3292.2,0.565]
[1736703832623,2.00079535,3292.7,3292.2,0.0075]
[1736703832848,0.41266554,3292.6,3292.2,0.0075]
[1736703834208,0.8033,3292.7,3292.2,0.0075]
[1736703834409,0.8033,3292.9,3292.4,0.0075]
[1736703835243,2.92914,3292.9,3292.4,0.0075]
[1736703837575,2.12585,3292.8,3292.4,0.0075]
[1736703840473,2.53851454,3292.8,3292.4,0.0075]
[1736703840845,2.53851454,3292.8,3292.2,0.5575]
[1736703843294,2.12585,3292.8,3292.2,0.5575]
[1736703843635,0.8033,3292.9,3292.2,0.5575]
[1736703844162,0.04657603,3292.8,3292.2,0.5575]
[1736703844672,2.92911,3292.9,3292.2,0.5575]
[1736703844874,2.12585,3292.8,3292.2,0.5575]
[1736703845082,2.17242603,3292.8,3292.2,0.5575]
[1736703848970,2.17242603,3292.8,3292.4,0.5575]
[1736703849137,2.58974817,3292.8,3292.4,0.5575]
[1736703849340,0.04657603,3292.8,3292.7,1.3931]
[1736703849538,0.005,3293.4,3292.8,0.565]
[1736703850090,0.04662355,3293.3,3292.8,0.565]
[1736703850443,0.04662355,3293.3,3293.0,0.55]
[1736703850773,0.04662355,3293.3,3293.1,0.015]
[1736703850982,0.04662355,3293.3,3293.2,0.565]
[1736703851153,0.04662355,3293.3,3293.2,6.3522]
[1736703854640,0.04662355,3293.3,3293.2,6.98742]
[1736703854843,0.005,3293.4,3293.3,0.015]
[1736703855076,0.005,3293.4,3293.3,5.565]
[1736703855077,0.04915036,3293.4,3293.3,5.565]
[1736703855271,0.005,3293.4,3293.3,5.565]
[1736703855478,0.04915036,3293.4,3293.3,5.565]
[1736703855661,0.005,3293.4,3293.3,6.14381857]
[1736703855866,0.04915036,3293.4,3293.3,6.14381857]
[1736703856168,0.005,3293.4,3293.3,6.14381857]
[1736703856376,0.04915036,3293.4,3293.3,6.14381857]
[1736703868294,0.0498155,3293.4,3293.3,6.14381857]
[1736703880427,0.0498155,3293.4,3293.3,1.14381857]
[1736703880579,0.0498155,3293.4,3293.3,0.565]
[1736703881014,0.0498155,3293.4,3293.3,4.70813]
[1736703881180,0.0498155,3293.4,3293.3,5.565]
[1736703884518,0.0498155,3293.4,3293.3,6.4066]
[1736703887292,0.0498155,3293.4,3293.3,6.69010925]
[1736703891306,0.005,3293.4,3293.3,6.69010925]
[1736703891524,0.05003716,3293.4,3293.3,6.69010925]
[1736703891705,0.005,3293.4,3293.3,6.69010925]
[1736703891906,0.05009257,3293.4,3293.3,6.69010925]
[1736703895324,0.05009257,3293.4,3293.3,5.86350925]
[1736703898433,0.005,3293.4,3293.3,6.74986018]
[1736703898841,0.05008463,3293.4,3293.3,6.74986018]
[1736703899040,0.005,3293.4,3293.3,6.74986018]
[1736703899230,0.05008463,3293.4,3293.3,6.74986018]
[1736703899403,0.005,3293.4,3293.3,6.74986018]
[1736703900150,0.05008463,3293.4,3293.3,6.74986018]
[1736703900439,0.05008463,3293.4,3293.3,5.86350925]
[1736703909263,0.05008463,3293.4,3293.3,6.09053002]
[1736703913767,0.05008463,3293.4,3293.3,5.86350925]
[1736703930743,0.05008463,3293.4,3293.3,6.09043542]
[1736703932337,0.005,3293.4,3293.3,6.09043542]
[1736703932495,0.0501559,3293.4,3293.3,6.09043542]
[1736703937009,0.0501559,3293.4,3293.3,5.86350925]
[1736703938982,0.8348559,3293.4,3293.3,0.28350925]
[1736703939127,2.9603159,3293.4,3293.3,0.28350925]
[1736703939739,2.12572,3293.0,3292.9,0.55]
[1736703939940,3.16821121,3293.0,3292.8,0.28350925]
[1736703940156,3.32327535,3292.9,3292.8,0.28350925]
[1736703940421,4.10797535,3292.9,3292.8,0.28350925]
[1736703940617,4.15319456,3292.9,3292.8,0.28350925]
[1736703940817,2.02741456,3292.9,3292.5,0.22693699]
[1736703941017,2.12587,3292.8,3292.5,0.22693699]
[1736703941265,0.82991921,3292.9,3292.6,0.5575]
[1736703941561,2.13049,3293.4,3292.6,0.0075]
[1736703941861,2.1256,3293.2,3292.7,0.0075]
[1736703942293,0.04510839,3293.1,3292.7,0.0075]
[1736703942453,0.04510839,3293.1,3292.9,0.0075]
[1736703943900,0.04510839,3293.1,3292.7,0.0075]
[1736703944714,0.04510839,3293.1,3292.5,0.7765801]
[1736703944914,0.7847,3292.8,3292.5,0.2265801]
[1736703945335,0.7847,3292.8,3292.3,0.0075]
[1736703945771,0.7847,3292.8,3292.3,0.015]
[1736703946173,2.126,3292.6,3291.9,0.7787]
[1736703946485,0.04427712,3292.5,3292.0,0.015]
[1736703947419,0.04427712,3292.5,3292.2,0.0075]
[1736703947579,0.7527,3292.4,3292.2,0.0075]
[1736703948118,0.04427712,3292.3,3292.2,0.0075]
[1736703948278,0.04427712,3292.3,3292.2,3.5575]
[1736703950207,0.04427712,3292.3,3292.2,0.5575]
[1736703951852,0.04427712,3292.3,3292.2,0.55]
[1736703954320,0.45633537,3292.3,3292.2,0.55]
[1736703957251,0.7555,3292.2,3291.6,0.28265545]
[1736703957438,1.19749535,3292.1,3291.6,0.28265545]
[1736703957881,0.0432634,3292.0,3291.7,0.5575]
[1736703958087,0.0432634,3292.0,3291.7,0.0075]
[1736703959291,0.0432634,3292.0,3291.6,0.0075]
[1736703960136,0.7555,3291.9,3291.6,0.0075]
[1736703960341,0.7555,3291.9,3291.4,0.0075]
[1736703960582,0.0432634,3291.8,3291.4,0.0075]
[1736703962057,0.0432634,3291.8,3291.4,0.5575]
[1736703962258,0.0432634,3291.8,3291.7,0.0225]
[1736703962490,0.0432634,3291.8,3291.7,8.58]
[1736703962792,0.7555,3292.5,3291.9,0.0075]
[1736703963249,0.04316042,3292.4,3291.9,0.0075]
[1736703963440,0.04316042,3292.4,3291.9,0.03]
[1736703963646,0.04316042,3292.4,3292.1,0.0075]
[1736703964795,0.04316042,3292.4,3291.9,0.0075]
[1736703964944,0.04316042,3292.4,3291.9,0.015]
[1736703965144,0.04316042,3292.4,3291.9,0.0075]
[1736703966678,2.88172,3292.3,3291.8,0.55]
[1736703966994,2.4620052,3292.2,3291.8,0.55]
[1736703967748,0.3357752,3292.2,3291.8,0.55]
[1736703968086,0.04328716,3292.2,3292.1,0.0075]
[1736703968461,0.7555,3292.5,3292.1,0.0075]
[1736703968951,0.04305745,3292.4,3292.1,0.0075]
[1736703972063,2.12598,3292.6,3292.1,0.0075]
[1736703972268,0.0431842,3292.5,3292.1,0.0075]
[1736703976249,0.7534,3292.4,3291.7,3.0]
[1736703976400,2.12618,3292.3,3291.7,3.0]
[1736703976598,2.16934835,3292.3,3291.7,3.0]
[1736703978025,2.16934835,3292.3,3291.8,0.0075]
[1736703978562,2.16934835,3292.3,3291.8,0.5575]
[1736703984507,0.04316835,3292.3,3291.8,0.5575]
[1736703985809,2.16934835,3292.3,3291.8,0.5575]
[1736703986154,0.7534,3292.1,3291.8,0.5575]
[1736703986454,0.04318419,3292.0,3291.8,0.5575]
[1736703986864,0.04318419,3292.0,3291.3,0.8031]
[1736703987168,0.04318419,3292.0,3291.1,0.5725]
[1736703987169,2.87983,3291.9,3291.1,0.5725]
[1736703987454,0.7534,3291.7,3291.1,0.0075]
[1736703987761,1.16549815,3291.7,3291.1,0.0075]
[1736703987960,0.04296238,3291.6,3291.1,0.0075]
[1736703988162,0.04296238,3291.6,3291.1,0.5575]
[1736703989456,0.04296238,3291.6,3291.1,0.0075]
[1736703989615,0.04296238,3291.6,3291.0,0.0075]
[1736703990336,0.04296238,3291.6,3291.2,0.0075]
[1736703992678,0.04296238,3291.6,3291.0,0.0075]
[1736703993884,2.87997,3291.7,3291.0,0.0075]
[1736703994177,2.12657,3291.7,3291.0,0.0075]
[1736703994341,0.7746,3291.4,3291.0,0.0075]
[1736703994866,0.04231271,3291.3,3291.0,0.0075]
[1736703996657,0.04231271,3291.3,3290.6,0.58]
[1736703998603,0.33667398,3291.3,3290.7,0.22634476]
[1736703998748,0.7746,3291.2,3290.7,0.22634476]
[1736703999073,0.81690478,3291.2,3290.7,0.22634476]
[1736703999277,0.7746,3291.0,3290.7,0.22634476]
[1736703999816,0.04210667,3290.9,3290.7,0.22634476]
[1736704000077,0.04210667,3290.9,3290.8,0.55]
[1736704000373,0.04210667,3290.9,3290.4,0.5575]
[1736704000571,0.04210667,3290.9,3290.4,0.85166941]
[1736704000875,0.7746,3291.0,3290.4,0.85166941]
[1736704001383,0.04210667,3290.9,3290.4,0.85166941]
[1736704001547,0.7746,3291.0,3290.4,1.07801417]
[1736704001748,0.04210667,3290.8,3290.4,1.07801417]
[1736704002072,0.7746,3291.0,3290.4,1.07801417]
[1736704002502,0.04210667,3290.9,3290.4,1.07801417]
[1736704003002,0.7746,3291.0,3290.4,1.07801417]
[1736704003299,0.04210667,3290.8,3290.4,1.07801417]
[1736704003504,0.7746,3291.0,3290.4,1.07801417]
[1736704004012,0.04210667,3290.9,3290.4,1.07801417]
[1736704004300,0.04210667,3290.9,3290.4,0.78384476]
[1736704004603,0.7746,3291.0,3290.4,0.78384476]
[1736704004806,0.04210667,3290.9,3290.4,0.5575]
[1736704004991,0.7746,3291.0,3290.4,0.5575]
[1736704005195,0.04210667,3290.8,3290.4,0.5575]
[1736704005394,0.7746,3291.0,3290.4,0.93892341]
[1736704005593,0.04210667,3290.7,3290.4,0.93892341]
[1736704005764,0.7746,3291.0,3290.4,0.93892341]
[1736704005965,0.04210667,3290.6,3290.5,0.5575]
[1736704006205,0.7746,3291.0,3290.5,5.5575]
[1736704006365,0.04210667,3290.6,3290.5,5.5575]
[1736704006568,0.7746,3291.0,3290.5,6.17402682]
[1736704006904,0.04210667,3290.6,3290.5,5.5575]
[1736704007114,0.7746,3291.0,3290.6,0.5575]
[1736704007579,0.7746,3291.0,3290.6,0.0075]
[1736704007776,0.7746,3291.0,3290.5,0.0075]
[1736704008495,0.7746,3291.0,3290.4,0.0075]
[1736704009216,0.04210667,3290.9,3290.4,0.0075]
[1736704009360,0.04210667,3290.9,3290.6,0.0075]
[1736704014526,0.04210667,3290.9,3290.6,0.03]
[1736704015032,0.7746,3291.0,3290.6,0.03]
[1736704018998,0.7843,3291.3,3290.7,5.0]
[1736704019197,2.91095,3291.6,3290.9,0.7673]
[1736704019509,0.0417421,3291.2,3291.0,0.5575]
[1736704019715,2.91095,3291.6,3291.2,0.55]
[1736704020034,0.291095,3291.6,3290.9,0.5575]
[1736704020338,0.7843,3291.2,3290.9,0.5575]
[1736704020924,0.7843,3291.2,3290.9,0.55]
[1736704021145,2.91131,3291.0,3290.9,0.55]
[1736704021335,3.202441,3291.0,3290.9,0.55]
[1736704021485,3.202441,3291.0,3290.3,0.0225]
[1736704021685,2.91131,3291.0,3290.3,0.0225]
[1736704021886,2.12708,3290.9,3290.3,0.0225]
[1736704022192,2.12725,3290.7,3290.1,3.0]
[1736704022405,0.7843,3290.6,3290.1,3.0]
[1736704022705,0.7843,3290.6,3290.2,0.5575]
[1736704022892,0.7843,3290.6,3290.2,0.23449172]
[1736704023285,2.91157,3290.6,3290.2,0.23449172]
[1736704024188,2.91157,3290.6,3290.2,0.0075]
[1736704024640,0.04143294,3290.5,3290.2,0.0075]
[1736704026004,0.04143294,3290.5,3289.8,0.7673]
[1736704026312,2.12736,3290.5,3289.8,1.14403]
[1736704026497,2.12736,3290.5,3289.9,0.5575]
[1736704026703,0.04143294,3290.4,3289.9,0.5575]
[1736704026897,0.04143294,3290.4,3289.9,0.78437479]
[1736704027436,0.04143294,3290.3,3289.9,0.78437479]
[1736704027587,0.7843,3290.6,3289.9,1.28025475]
[1736704027903,0.04143294,3290.2,3289.9,1.28025475]
[1736704028230,0.7843,3290.6,3290.1,0.5575]
[1736704028426,0.7843,3290.6,3290.1,0.0075]
[1736704028589,0.04124266,3290.5,3290.1,0.0075]
[1736704028791,0.04124266,3290.5,3289.9,0.5575]
[1736704030038,0.04124266,3290.5,3290.1,0.0075]
[1736704031735,0.33652493,3290.5,3290.0,0.0075]
[1736704031940,2.9418,3290.4,3290.0,0.0075]
[1736704032446,0.04079084,3290.3,3289.6,0.58]
[1736704032665,2.9418,3290.4,3289.6,0.58]
[1736704033357,2.9418,3290.4,3289.8,0.55]
[1736704033658,0.04074327,3290.3,3289.8,0.55]
[1736704033956,2.9418,3290.4,3289.8,0.55]
[1736704034158,2.9418,3290.4,3289.9,0.0075]
[1736704034363,0.04074327,3290.3,3289.9,0.0075]
[1736704034545,0.04074327,3290.3,3290.1,0.0075]
[1736704034748,0.04074327,3290.3,3290.0,0.55]
[1736704034749,0.8144,3290.7,3290.3,0.0075]
[1736704035064,0.04074327,3290.6,3290.3,0.0075]
[1736704035474,0.04074327,3290.6,3290.3,0.5575]
[1736704035811,2.12676,3291.4,3290.3,0.99406]
[1736704036014,0.04073534,3290.5,3290.4,1.3656]
[1736704036262,2.12688,3291.2,3290.5,0.5575]
[1736704037346,2.12688,3291.2,3290.5,0.78417656]
[1736704038860,2.12688,3291.2,3290.5,0.5575]
[1736704039261,0.04073534,3291.1,3290.5,0.5575]
[1736704039760,2.12688,3291.2,3290.5,0.5575]
[1736704042302,0.8144,3291.3,3290.6,0.0075]
[1736704042498,0.8144,3291.3,3290.8,0.5575]
[1736704042652,0.04073534,3291.2,3290.8,0.5575]
[1736704043070,2.16762534,3291.2,3290.6,0.565]
[1736704045400,0.04073534,3291.2,3290.6,0.565]
[1736704045608,2.94105,3291.6,3291.0,0.5575]
[1736704045954,1.108505,3291.6,3291.0,0.5575]
[1736704046154,2.12676,3291.4,3291.0,0.5575]
[1736704046786,0.03988646,3291.3,3291.0,0.5575]
[1736704047502,0.03988646,3291.3,3290.6,3.0075]
[1736704047503,2.9215,3291.2,3290.6,0.8014]
[1736704047857,2.9215,3291.2,3290.7,0.5575]
[1736704048060,0.03988646,3291.1,3290.7,0.5575]
[1736704048702,2.16683646,3291.1,3290.7,0.5575]
[1736704048855,2.46298011,3291.1,3290.7,0.5575]
[1736704051612,2.12702,3291.0,3290.3,0.789]
[1736704051760,2.12709,3290.9,3290.3,0.789]
[1736704052110,0.29614365,3291.1,3290.2,5.38]
[1736704052111,2.12728,3290.6,3290.2,5.38]
[1736704052258,2.12728,3290.6,3290.0,0.789]
[1736704052462,0.2525986,3290.5,3290.0,0.789]
[1736704052958,2.88474,3290.4,3289.9,0.0075]
[1736704053193,0.03982301,3290.3,3289.9,0.0075]
[1736704053394,0.03982301,3290.3,3289.8,0.789]
[1736704053563,2.12749,3290.3,3289.8,0.789]
[1736704053762,0.03982301,3290.2,3289.9,0.55]
[1736704054085,2.12749,3290.3,3289.9,0.55]
[1736704054289,2.12749,3290.3,3289.8,1.01576769]
[1736704054290,0.03961676,3290.1,3289.8,0.22676769]
[1736704054468,2.12754,3290.2,3289.8,0.22676769]
[1736704054667,0.03961676,3290.0,3289.9,0.55]
[1736704054893,2.12754,3290.2,3289.8,0.22676769]
[1736704055099,0.03961676,3290.0,3289.9,0.55]
[1736704055302,2.12754,3290.2,3289.9,0.55]
[1736704055458,0.03961676,3290.0,3289.7,0.55]
[1736704055663,2.12754,3290.2,3289.7,0.55]
[1736704055865,0.03961676,3289.9,3289.7,0.55]
[1736704056105,2.12754,3290.2,3289.7,0.55]
[1736704056603,0.03877584,3290.1,3289.6,0.55]
[1736704057113,2.12754,3290.2,3289.6,0.55]
[1736704057611,0.03875997,3290.1,3289.6,0.55]
[1736704058014,2.12754,3290.2,3289.6,0.55]
[1736704058197,2.8847,3290.4,3289.7,0.0075]
[1736704058511,2.8847,3290.4,3289.9,0.5575]
[1736704058664,0.03875997,3290.3,3289.9,0.5575]
[1736704059517,0.7573,3290.4,3289.9,0.5575]
[1736704060017,0.03875997,3290.3,3289.9,0.5575]
[1736704063128,0.03875997,3290.2,3289.9,0.5575]
[1736704063481,2.12741,3290.4,3289.9,0.5575]
[1736704063704,0.03875997,3290.1,3289.9,0.5575]
[1736704063875,2.12741,3290.4,3289.9,0.5575]
[1736704064090,0.03875997,3290.0,3289.9,0.0075]
[1736704064420,2.12741,3290.4,3289.9,0.5575]
[1736704064579,0.03875997,3290.0,3289.9,0.5575]
[1736704064983,2.12741,3290.4,3289.9,0.5575]
[1736704065208,0.03875997,3290.0,3289.9,0.5575]
[1736704065396,2.12741,3290.4,3289.9,0.5575]
[1736704065696,0.03875997,3290.3,3289.9,0.5575]
[1736704072614,0.84405997,3290.3,3289.9,0.5575]
[1736704073239,0.03875997,3290.3,3289.9,0.5575]
[1736704074350,0.03875997,3290.3,3289.9,0.5575]
[1736704075515,2.12755,3290.2,3289.9,0.55]
[1736704076017,0.03875204,3290.1,3289.9,0.55]
[1736704076546,0.8053,3290.5,3289.9,0.55]
[1736704076732,1.10144365,3291.1,3290.3,0.7813]
[1736704077045,2.12703,3291.0,3290.4,0.5575]
[1736704077650,2.1268,3291.4,3290.6,0.5575]
[1736704078205,2.93199,3291.5,3290.9,0.5575]
[1736704078603,0.8053,3291.5,3290.9,0.5575]
[1736704078804,0.8053,3291.5,3290.9,0.55]
[1736704079039,2.12685,3291.3,3290.9,0.55]
[1736704079228,0.8053,3291.5,3290.9,0.55]
[1736704079404,0.8053,3291.5,3290.6,0.0075]
[1736704079806,0.8053,3291.5,3290.7,0.0075]
[1736704080216,2.12687,3291.3,3290.7,0.0075]
[1736704080647,2.12687,3291.3,3290.8,0.0075]
[1736704080834,2.12687,3291.3,3290.8,0.5575]
[1736704081356,2.12656,3291.7,3290.9,0.7615]
[1736704081539,2.12656,3291.7,3291.0,0.5575]
[1736704081744,2.12656,3291.7,3291.2,0.5575]
[1736704084135,0.03968025,3291.6,3291.2,0.55]
[1736704084318,0.03968025,3291.6,3290.5,0.0075]
[1736704084319,2.12676,3291.4,3290.8,0.7615]
[1736704084519,0.04006093,3291.3,3290.8,0.7615]
[1736704085212,2.12694,3291.2,3290.9,0.55]
[1736704085446,0.8252,3291.2,3290.5,0.7615]
[1736704085614,2.12713,3290.9,3290.5,0.7615]
[1736704085835,2.12715,3290.8,3290.4,0.0075]
[1736704086035,2.1670206,3290.8,3290.4,0.5575]
[1736704086262,0.25657266,3290.8,3290.3,0.7615]
[1736704086468,2.12728,3290.6,3290.1,0.7615]
[1736704086965,0.0398706,3290.5,3290.2,0.0075]
[1736704087662,0.0398706,3290.5,3290.2,0.5575]
[1736704087975,2.12728,3290.6,3290.2,0.5575]
[1736704090251,2.12728,3290.6,3290.2,0.52814063]
[1736704090423,0.8252,3290.7,3290.2,0.52814063]
[1736704090749,0.33486865,3290.6,3290.2,0.52814063]
[1736704091081,0.03963265,3290.6,3290.2,0.52814063]
[1736704091365,2.12702,3291.0,3290.3,0.7615]
[1736704091724,0.03963265,3290.9,3290.3,0.7615]
[1736704092368,0.03963265,3290.9,3290.4,0.5575]
[1736704098873,2.16671265,3290.9,3290.4,0.5575]
[1736704099169,2.38338392,3290.9,3290.4,0.5575]
[1736704101731,2.16671265,3290.9,3290.4,0.5575]
[1736704104075,0.03963265,3290.9,3290.4,0.55]
[1736704104275,2.12716,3290.8,3290.4,0.55]
[1736704104746,0.03956125,3290.7,3290.4,0.55]
[1736704105178,2.12716,3290.8,3290.4,0.55]
[1736704105467,0.03956125,3290.6,3290.4,0.55]
[1736704105640,2.420656,3290.8,3290.4,0.55]
[1736704105845,0.03956125,3290.5,3290.4,0.55]
[1736704106075,2.12716,3290.8,3290.4,0.55]
[1736704106256,0.03956125,3290.5,3290.4,0.55]
[1736704106458,2.12716,3290.8,3290.4,0.55]
[1736704106663,0.293496,3290.7,3290.4,0.55]
[1736704106958,0.03956125,3290.6,3290.4,0.55]
[1736704109879,2.12709,3290.9,3290.4,0.55]
[1736704110067,0.03956125,3290.5,3290.4,0.55]
[1736704110230,2.12709,3290.9,3290.4,5.55]
[1736704110430,0.03956125,3290.5,3290.4,0.55]
[1736704110731,0.03956125,3290.5,3290.4,5.55]
[1736704110979,2.12709,3290.9,3290.4,5.55]
[1736704111184,0.03962472,3290.5,3290.4,0.55]
[1736704111344,2.12709,3290.9,3290.4,5.55]
[1736704111550,0.03962472,3290.8,3290.4,0.55]
[1736704111766,2.16677472,3290.8,3290.4,0.55]
[1736704113837,0.03962472,3290.8,3290.4,0.55]
[1736704114037,2.12706,3291.0,3290.4,0.55]
[1736704114341,0.03962472,3290.9,3290.4,0.55]
[1736704115966,0.03962472,3290.9,3290.6,0.55]
[1736704116173,0.03962472,3290.9,3290.8,1.3554]
[1736704116379,0.03962472,3290.9,3290.8,1.41578562]
[1736704116685,2.12655,3291.8,3291.1,0.5575]
[1736704116865,2.415195,3291.8,3291.1,0.5575]
[1736704117067,0.03968025,3291.7,3291.1,0.5575]
[1736704117238,0.03968025,3291.7,3291.1,0.0075]
[1736704117443,0.03968025,3291.7,3291.5,0.5575]
[1736704117683,2.12612,3292.4,3291.6,9.39327798]
[1736704117882,2.414722,3292.4,3291.7,0.5575]
[1736704118092,0.03968025,3292.3,3291.7,0.5575]
[1736704118687,2.12624,3292.2,3291.7,0.5575]
[1736704119104,0.03968025,3292.1,3291.7,0.5575]
[1736704120507,2.16598025,3292.1,3291.7,0.55]
[1736704120706,2.34298803,3292.0,3291.7,0.55]
[1736704120911,0.21659803,3292.0,3291.7,0.55]
[1736704121065,2.12651,3291.8,3291.3,0.8054]
[1736704121578,2.12651,3291.8,3291.4,0.55]
[1736704121887,0.7599,3292.1,3291.4,0.55]
[1736704122059,2.12654,3291.8,3291.3,0.8054]
[1736704122259,2.12654,3291.8,3291.4,0.55]
[1736704122476,0.212654,3291.7,3291.4,0.55]
[1736704122806,0.25377749,3291.7,3291.4,0.55]
[1736704124466,0.7599,3291.6,3291.2,0.55]
[1736704124806,2.88652,3291.6,3291.2,0.55]
[1736704124965,0.04112349,3291.5,3291.2,0.55]
[1736704125722,2.12651,3291.8,3291.2,0.55]
[1736704125875,0.288641,3291.7,3291.2,0.55]